[Event "Early-Titled-Tuesday-Blitz-April-23-2024"]
[Site "Chess.com"]
[Date "2024.04.23"]
[Round "11"]
[White "Alexei_Gubajdullin"]
[Black "GrotBchess"]
[Result "1-0"]
[WhiteElo "2600"]
[BlackElo "2446"]
[TimeControl "180+1"]
[EndTime "10:09:47 PDT"]
[Termination "Alexei_Gubajdullin won by checkmate"]

1. Nf3 {[%clk 0:03:00.2]} 1... Nf6 {[%clk 0:02:58.3]} 2. g3 {[%clk 0:02:59.8]}
2... e6 {[%clk 0:02:57]} 3. Bg2 {[%clk 0:02:59.5]} 3... d5 {[%clk 0:02:57.2]} 4.
O-O {[%clk 0:02:59.7]} 4... Be7 {[%clk 0:02:57.1]} 5. b3 {[%clk 0:02:58.3]} 5...
O-O {[%clk 0:02:57.2]} 6. Bb2 {[%clk 0:02:58]} 6... c5 {[%clk 0:02:56.6]} 7. e3
{[%clk 0:02:57.8]} 7... Nc6 {[%clk 0:02:56.1]} 8. c4 {[%clk 0:02:57.7]} 8... d4
{[%clk 0:02:55.7]} 9. exd4 {[%clk 0:02:57]} 9... cxd4 {[%clk 0:02:56.6]} 10. Re1
{[%clk 0:02:57.1]} 10... a5 {[%clk 0:02:49.1]} 11. a3 {[%clk 0:02:55.6]} 11...
Re8 {[%clk 0:02:43.1]} 12. Ne5 {[%clk 0:02:54.7]} 12... Nxe5 {[%clk 0:02:40.3]}
13. Rxe5 {[%clk 0:02:53]} 13... Bd6 {[%clk 0:02:40.8]} 14. Rb5 {[%clk
0:02:52.6]} 14... e5 {[%clk 0:02:31.7]} 15. d3 {[%clk 0:02:52]} 15... Qc7 {[%clk
0:02:27]} 16. Nd2 {[%clk 0:02:49.7]} 16... Bd7 {[%clk 0:02:26.8]} 17. Rc1 {[%clk
0:02:48]} 17... Bc6 {[%clk 0:02:22.8]} 18. a4 {[%clk 0:02:41.4]} 18... Bxg2
{[%clk 0:02:16.1]} 19. Kxg2 {[%clk 0:02:40.4]} 19... Bb4 {[%clk 0:02:16.3]} 20.
Nf1 {[%clk 0:02:27.6]} 20... Qc6+ {[%clk 0:02:14]} 21. Qf3 {[%clk 0:02:27]}
21... e4 {[%clk 0:02:07]} 22. dxe4 {[%clk 0:02:25.7]} 22... Rxe4 {[%clk
0:02:07.5]} 23. Rd1 {[%clk 0:02:23.2]} 23... Rd8 {[%clk 0:02:06.4]} 24. Ne3
{[%clk 0:02:19.9]} 24... g5 {[%clk 0:01:35.2]} 25. Nd5 {[%clk 0:02:14.7]} 25...
Nxd5 {[%clk 0:01:29.4]} 26. cxd5 {[%clk 0:02:13.9]} 26... Qg6 {[%clk 0:01:12.3]}
27. Rxd4 {[%clk 0:02:11.6]} 27... Rxd4 {[%clk 0:01:07.7]} 28. Bxd4 {[%clk
0:02:11.3]} 28... Bf8 {[%clk 0:01:06.6]} 29. Rxb7 {[%clk 0:02:09]} 29... g4
{[%clk 0:01:03.8]} 30. Qf6 {[%clk 0:02:07.5]} 30... Qe4+ {[%clk 0:00:58.6]} 31.
f3 {[%clk 0:02:04.2]} 31... gxf3+ {[%clk 0:00:51.9]} 32. Qxf3 {[%clk 0:01:59.4]}
32... Qc2+ {[%clk 0:00:45.7]} 33. Kh3 {[%clk 0:01:56.5]} 33... Qg6 {[%clk
0:00:41]} 34. g4 {[%clk 0:01:46.5]} 34... h6 {[%clk 0:00:37.3]} 35. Qf6 {[%clk
0:01:42.7]} 35... Qd3+ {[%clk 0:00:30.2]} 36. Kh4 {[%clk 0:01:42.4]} 36... Be7
{[%clk 0:00:11.7]} 37. Rxe7 {[%clk 0:01:41.4]} 37... Rxd5 {[%clk 0:00:09.1]} 38.
Qh8# {[%clk 0:01:39.8]} 1-0

[Event "Early-Titled-Tuesday-Blitz-April-23-2024"]
[Site "Chess.com"]
[Date "2024.04.23"]
[Round "11"]
[White "RamonManon0g"]
[Black "Let_it_be_1"]
[Result "0-1"]
[WhiteElo "2456"]
[BlackElo "2613"]
[TimeControl "180+1"]
[EndTime "10:09:50 PDT"]
[Termination "Let_it_be_1 won by resignation"]

1. e4 {[%clk 0:03:00.9]} 1... e6 {[%clk 0:02:58.9]} 2. d4 {[%clk 0:03:00.4]}
2... d5 {[%clk 0:02:59.4]} 3. Nd2 {[%clk 0:02:56.5]} 3... Nf6 {[%clk 0:02:58.5]}
4. e5 {[%clk 0:02:55.1]} 4... Nfd7 {[%clk 0:02:58.8]} 5. Ngf3 {[%clk 0:02:55.4]}
5... c5 {[%clk 0:02:59.4]} 6. c3 {[%clk 0:02:55.4]} 6... Nc6 {[%clk 0:03:00]} 7.
Bb5 {[%clk 0:02:54.6]} 7... Qb6 {[%clk 0:02:54]} 8. Ba4 {[%clk 0:02:53.1]} 8...
cxd4 {[%clk 0:02:50.4]} 9. c4 {[%clk 0:02:51.6]} 9... dxc4 {[%clk 0:02:38.9]}
10. Nxc4 {[%clk 0:02:51.6]} 10... Qb4+ {[%clk 0:02:35.1]} 11. Ncd2 {[%clk
0:02:47.8]} 11... b5 {[%clk 0:02:15.5]} 12. Bc2 {[%clk 0:02:38.8]} 12... Ndxe5
{[%clk 0:02:13.6]} 13. O-O {[%clk 0:02:35.5]} 13... Bb7 {[%clk 0:02:04.4]} 14.
Nxe5 {[%clk 0:02:31.7]} 14... Nxe5 {[%clk 0:02:04.1]} 15. Qh5 {[%clk 0:02:31.8]}
15... Bd6 {[%clk 0:01:55.2]} 16. Ne4 {[%clk 0:02:28.5]} 16... d3 {[%clk
0:01:39]} 17. Nxd6+ {[%clk 0:02:25]} 17... Qxd6 {[%clk 0:01:38.6]} 18. Rd1
{[%clk 0:01:47.9]} 18... Qc6 {[%clk 0:01:27.1]} 19. Qg5 {[%clk 0:01:48.2]} 19...
dxc2 {[%clk 0:01:17.2]} 20. Re1 {[%clk 0:01:41.8]} 20... f6 {[%clk 0:01:03]} 21.
Qh5+ {[%clk 0:01:40.7]} 21... g6 {[%clk 0:01:01.3]} 22. Qh3 {[%clk 0:01:40.4]}
22... O-O-O {[%clk 0:00:55.8]} 23. Bf4 {[%clk 0:01:31.3]} 23... Rd3 {[%clk
0:00:44.7]} 24. f3 {[%clk 0:01:30]} 24... Rhd8 {[%clk 0:00:40.3]} 25. Kf2 {[%clk
0:00:57.6]} 25... Rd1 {[%clk 0:00:34.1]} 26. Rc1 {[%clk 0:00:51.5]} 26... Nd3+
{[%clk 0:00:29.6]} 0-1

[Event "Early-Titled-Tuesday-Blitz-April-23-2024"]
[Site "Chess.com"]
[Date "2024.04.23"]
[Round "11"]
[White "Boxerandchessplayer"]
[Black "ljuks68"]
[Result "0-1"]
[WhiteElo "2245"]
[BlackElo "2389"]
[TimeControl "180+1"]
[EndTime "10:09:57 PDT"]
[Termination "ljuks68 won by resignation"]

1. Nf3 {[%clk 0:03:00.9]} 1... d5 {[%clk 0:02:50.3]} 2. e3 {[%clk 0:03:00.3]}
2... Nf6 {[%clk 0:02:49.2]} 3. c4 {[%clk 0:02:59.6]} 3... c6 {[%clk 0:02:49]} 4.
Nc3 {[%clk 0:02:57.9]} 4... e6 {[%clk 0:02:48.5]} 5. b3 {[%clk 0:02:56.2]} 5...
Nbd7 {[%clk 0:02:48.3]} 6. Bb2 {[%clk 0:02:55.3]} 6... Bd6 {[%clk 0:02:48.4]} 7.
Be2 {[%clk 0:02:55.3]} 7... a6 {[%clk 0:02:46.8]} 8. O-O {[%clk 0:02:55.5]} 8...
e5 {[%clk 0:02:45.6]} 9. d3 {[%clk 0:02:47.8]} 9... O-O {[%clk 0:02:44.4]} 10.
Rc1 {[%clk 0:02:37.3]} 10... Re8 {[%clk 0:02:38]} 11. Qc2 {[%clk 0:02:36.6]}
11... Nf8 {[%clk 0:02:37.4]} 12. Rfd1 {[%clk 0:02:31.6]} 12... Qe7 {[%clk
0:02:29.6]} 13. c5 {[%clk 0:01:41.8]} 13... Bc7 {[%clk 0:02:20.9]} 14. Nd2
{[%clk 0:01:25.6]} 14... Qxc5 {[%clk 0:02:18]} 15. Nce4 {[%clk 0:00:54.8]} 15...
Nxe4 {[%clk 0:02:17.2]} 16. Qxc5 {[%clk 0:00:53.9]} 16... Nxc5 {[%clk
0:02:17.4]} 17. Rxc5 {[%clk 0:00:54.8]} 17... Bd6 {[%clk 0:02:14.9]} 18. Rc2
{[%clk 0:00:55.1]} 18... Be6 {[%clk 0:02:11.1]} 19. Bf3 {[%clk 0:00:54.6]} 19...
f5 {[%clk 0:02:06.2]} 20. e4 {[%clk 0:00:54.3]} 20... fxe4 {[%clk 0:02:05.8]}
21. dxe4 {[%clk 0:00:53.9]} 21... d4 {[%clk 0:02:06.1]} 22. Nc4 {[%clk
0:00:53.5]} 22... Bc7 {[%clk 0:02:04.8]} 23. Be2 {[%clk 0:00:51.9]} 23... Rac8
{[%clk 0:01:46.3]} 24. Bd3 {[%clk 0:00:50.4]} 24... Nd7 {[%clk 0:01:37.8]} 25.
a3 {[%clk 0:00:48.9]} 25... b5 {[%clk 0:01:32.7]} 26. Nd2 {[%clk 0:00:48.1]}
26... c5 {[%clk 0:01:32.2]} 27. a4 {[%clk 0:00:46.6]} 27... Rb8 {[%clk
0:01:31.9]} 28. axb5 {[%clk 0:00:42.4]} 28... axb5 {[%clk 0:01:31.6]} 29. Ba3
{[%clk 0:00:42.8]} 29... Bb6 {[%clk 0:01:30.2]} 30. g3 {[%clk 0:00:41.8]} 30...
Rec8 {[%clk 0:01:29.2]} 31. f4 {[%clk 0:00:40.6]} 31... Ba5 {[%clk 0:01:21]} 32.
Rdc1 {[%clk 0:00:36.6]} 32... Bxd2 {[%clk 0:01:12.7]} 33. Rxd2 {[%clk
0:00:36.8]} 33... Bxb3 {[%clk 0:01:12.7]} 34. fxe5 {[%clk 0:00:36.1]} 34... Nxe5
{[%clk 0:01:11.8]} 35. Rxc5 {[%clk 0:00:30.3]} 35... Rxc5 {[%clk 0:01:10.3]} 36.
Bxc5 {[%clk 0:00:31.2]} 36... Nf3+ {[%clk 0:01:10.5]} 0-1

[Event "Early-Titled-Tuesday-Blitz-April-23-2024"]
[Site "Chess.com"]
[Date "2024.04.23"]
[Round "11"]
[White "SmirnovTimofey2000"]
[Black "campochess"]
[Result "0-1"]
[WhiteElo "1978"]
[BlackElo "2151"]
[TimeControl "180+1"]
[EndTime "10:09:57 PDT"]
[Termination "campochess won by checkmate"]

1. e4 {[%clk 0:03:00.9]} 1... c5 {[%clk 0:02:59.8]} 2. c3 {[%clk 0:03:00.7]}
2... Nf6 {[%clk 0:02:58.7]} 3. e5 {[%clk 0:02:59.1]} 3... Nd5 {[%clk 0:02:57.4]}
4. Bc4 {[%clk 0:02:59.3]} 4... e6 {[%clk 0:02:56.7]} 5. Nf3 {[%clk 0:02:57.3]}
5... Nb6 {[%clk 0:02:55.9]} 6. Bb3 {[%clk 0:02:57.1]} 6... Nc6 {[%clk
0:02:55.6]} 7. O-O {[%clk 0:02:55.6]} 7... d5 {[%clk 0:02:54.6]} 8. exd6 {[%clk
0:02:54.1]} 8... Qxd6 {[%clk 0:02:51.7]} 9. d3 {[%clk 0:02:50.2]} 9... Be7
{[%clk 0:02:50.6]} 10. g3 {[%clk 0:02:34.7]} 10... O-O {[%clk 0:02:44.2]} 11.
Bf4 {[%clk 0:02:34.2]} 11... Qd8 {[%clk 0:02:44.3]} 12. Re1 {[%clk 0:02:26.6]}
12... Nd5 {[%clk 0:02:43.9]} 13. Bc1 {[%clk 0:02:17.1]} 13... b6 {[%clk
0:02:40.8]} 14. Nbd2 {[%clk 0:02:10.6]} 14... Bb7 {[%clk 0:02:40.6]} 15. Ne4
{[%clk 0:02:03.7]} 15... h6 {[%clk 0:02:36.5]} 16. d4 {[%clk 0:01:55.7]} 16...
cxd4 {[%clk 0:02:34.5]} 17. Nxd4 {[%clk 0:01:56.6]} 17... Na5 {[%clk 0:02:31]}
18. Bc2 {[%clk 0:01:50.8]} 18... Nc4 {[%clk 0:02:26]} 19. b3 {[%clk 0:01:10.7]}
19... Nd6 {[%clk 0:02:16]} 20. c4 {[%clk 0:01:06.5]} 20... Nxe4 {[%clk
0:02:13.7]} 21. Bxe4 {[%clk 0:01:06.1]} 21... Nc3 {[%clk 0:02:13]} 22. Bh7+
{[%clk 0:00:24.6]} 22... Kxh7 {[%clk 0:02:09.3]} 23. Qd3+ {[%clk 0:00:24.5]}
23... Kg8 {[%clk 0:02:05.4]} 24. Qxc3 {[%clk 0:00:24.4]} 24... Bf6 {[%clk
0:02:05.1]} 25. Bb2 {[%clk 0:00:20.5]} 25... Qd7 {[%clk 0:02:01]} 26. Rad1
{[%clk 0:00:14]} 26... e5 {[%clk 0:01:59.7]} 27. Ne2 {[%clk 0:00:11.7]} 27...
Qh3 {[%clk 0:01:59.1]} 28. f3 {[%clk 0:00:06.8]} 28... e4 {[%clk 0:01:51.8]} 29.
Nd4 {[%clk 0:00:06.7]} 29... exf3 {[%clk 0:01:48.5]} 30. Rf1 {[%clk 0:00:04.3]}
30... Rad8 {[%clk 0:01:46.3]} 31. Rxf3 {[%clk 0:00:02.2]} 31... Bxd4+ {[%clk
0:01:43.7]} 32. Rxd4 {[%clk 0:00:01.4]} 32... Bxf3 {[%clk 0:01:31.3]} 33. Rxd8
{[%clk 0:00:01.1]} 33... Qg2# {[%clk 0:01:30.6]} 0-1

[Event "Early-Titled-Tuesday-Blitz-April-23-2024"]
[Site "Chess.com"]
[Date "2024.04.23"]
[Round "11"]
[White "Pasmendjambvirgulptipon98"]
[Black "ScofieldMichael01"]
[Result "0-1"]
[WhiteElo "2357"]
[BlackElo "2574"]
[TimeControl "180+1"]
[EndTime "10:10:01 PDT"]
[Termination "ScofieldMichael01 won on time"]

1. e4 {[%clk 0:02:59.9]} 1... Nf6 {[%clk 0:02:59]} 2. d3 {[%clk 0:02:58.6]} 2...
g6 {[%clk 0:02:58.6]} 3. Nd2 {[%clk 0:02:59.1]} 3... Bg7 {[%clk 0:02:58.7]} 4.
g3 {[%clk 0:03:00]} 4... O-O {[%clk 0:02:59.2]} 5. Bg2 {[%clk 0:03:00.9]} 5...
d6 {[%clk 0:02:59.7]} 6. Ngf3 {[%clk 0:03:01.8]} 6... c5 {[%clk 0:02:58.7]} 7.
O-O {[%clk 0:03:00.5]} 7... Nc6 {[%clk 0:02:59.3]} 8. c3 {[%clk 0:03:01.1]} 8...
Bd7 {[%clk 0:02:56.2]} 9. d4 {[%clk 0:03:00.7]} 9... cxd4 {[%clk 0:02:57.1]} 10.
cxd4 {[%clk 0:03:00.5]} 10... Qb6 {[%clk 0:02:53]} 11. e5 {[%clk 0:02:16.5]}
11... dxe5 {[%clk 0:02:41.8]} 12. dxe5 {[%clk 0:02:15.3]} 12... Ng4 {[%clk
0:02:41.9]} 13. Nc4 {[%clk 0:02:15.5]} 13... Qc7 {[%clk 0:02:42.3]} 14. Bf4
{[%clk 0:02:10.8]} 14... Be6 {[%clk 0:02:42.6]} 15. Rc1 {[%clk 0:02:09.3]} 15...
Rfd8 {[%clk 0:02:40.5]} 16. Qe2 {[%clk 0:02:08.5]} 16... Nh6 {[%clk 0:02:02.5]}
17. a3 {[%clk 0:01:44.4]} 17... Nf5 {[%clk 0:02:00.9]} 18. b4 {[%clk 0:01:44.3]}
18... Ncd4 {[%clk 0:01:59.8]} 19. Nxd4 {[%clk 0:01:19.6]} 19... Nxd4 {[%clk
0:02:00.7]} 20. Qd3 {[%clk 0:01:15.6]} 20... Bf5 {[%clk 0:01:37.4]} 21. Qe3
{[%clk 0:01:07.3]} 21... Nc2 {[%clk 0:01:36.9]} 22. Qc3 {[%clk 0:00:49.6]} 22...
Rac8 {[%clk 0:01:36.8]} 23. Rxc2 {[%clk 0:00:29.3]} 23... Bxc2 {[%clk
0:01:36.2]} 24. Qxc2 {[%clk 0:00:29.8]} 24... Qxc4 {[%clk 0:01:36.8]} 25. Qb1
{[%clk 0:00:23.2]} 25... b6 {[%clk 0:01:32.6]} 26. h4 {[%clk 0:00:22.5]} 26...
Qc2 {[%clk 0:01:28.2]} 27. Qa1 {[%clk 0:00:17.9]} 27... Qc3 {[%clk 0:01:26.8]}
28. Qa2 {[%clk 0:00:17.1]} 28... Qc4 {[%clk 0:01:25.1]} 29. Qa1 {[%clk
0:00:16.6]} 29... Qb3 {[%clk 0:01:22.2]} 30. Rb1 {[%clk 0:00:07.8]} 30... Qc3
{[%clk 0:01:21.8]} 31. Qa2 {[%clk 0:00:07.2]} 31... Bxe5 {[%clk 0:01:21.5]} 32.
Rc1 {[%clk 0:00:04]} 32... Qd4 {[%clk 0:01:19.9]} 0-1

[Event "Early-Titled-Tuesday-Blitz-April-23-2024"]
[Site "Chess.com"]
[Date "2024.04.23"]
[Round "11"]
[White "Aradhya2000"]
[Black "JeFumeDesClopes"]
[Result "1-0"]
[WhiteElo "2854"]
[BlackElo "2631"]
[TimeControl "180+1"]
[EndTime "10:10:04 PDT"]
[Termination "Aradhya2000 won by resignation"]

1. d4 {[%clk 0:03:00.9]} 1... Nf6 {[%clk 0:02:59.9]} 2. c4 {[%clk 0:03:01.5]}
2... a6 {[%clk 0:02:58.8]} 3. Nc3 {[%clk 0:03:00.9]} 3... c5 {[%clk 0:02:59.3]}
4. dxc5 {[%clk 0:03:00.6]} 4... e6 {[%clk 0:02:59.6]} 5. Be3 {[%clk 0:02:59.7]}
5... Qa5 {[%clk 0:02:56.6]} 6. a3 {[%clk 0:02:58.5]} 6... Ne4 {[%clk 0:02:53.1]}
7. b4 {[%clk 0:02:58.7]} 7... Nxc3 {[%clk 0:02:48.5]} 8. Qb3 {[%clk 0:02:55.9]}
8... Qa4 {[%clk 0:02:45.8]} 9. Qxc3 {[%clk 0:02:56.1]} 9... Nc6 {[%clk
0:02:41.6]} 10. Nf3 {[%clk 0:02:53.3]} 10... b6 {[%clk 0:02:40.6]} 11. cxb6
{[%clk 0:02:50.8]} 11... f6 {[%clk 0:02:21.8]} 12. g3 {[%clk 0:02:45.6]} 12...
Be7 {[%clk 0:02:18.4]} 13. Bg2 {[%clk 0:02:45.7]} 13... O-O {[%clk 0:02:19]} 14.
O-O {[%clk 0:02:46.3]} 14... Bb7 {[%clk 0:02:18.6]} 15. Rfd1 {[%clk 0:02:27.7]}
15... Rfd8 {[%clk 0:02:14.8]} 16. Rd2 {[%clk 0:02:27.8]} 16... Rac8 {[%clk
0:02:08.3]} 17. Nd4 {[%clk 0:02:24.8]} 17... a5 {[%clk 0:01:44.8]} 18. b5 {[%clk
0:02:09.2]} 18... Nxd4 {[%clk 0:01:37.1]} 19. Bxb7 {[%clk 0:01:44.8]} 19... Nxb5
{[%clk 0:00:52.4]} 20. Qb2 {[%clk 0:01:40.2]} 20... Rb8 {[%clk 0:00:46.8]} 21.
Ba6 {[%clk 0:01:22.5]} 21... Nd6 {[%clk 0:00:27.4]} 22. c5 {[%clk 0:00:58.1]}
22... Ne4 {[%clk 0:00:27.5]} 23. Bb5 {[%clk 0:00:48.4]} 23... Nxd2 {[%clk
0:00:20.1]} 24. Bxa4 {[%clk 0:00:48.1]} 24... Nc4 {[%clk 0:00:20.9]} 25. Qb5
{[%clk 0:00:46.8]} 25... Nxe3 {[%clk 0:00:21]} 26. fxe3 {[%clk 0:00:47.7]} 26...
Rdc8 {[%clk 0:00:21.5]} 1-0

[Event "Early-Titled-Tuesday-Blitz-April-23-2024"]
[Site "Chess.com"]
[Date "2024.04.23"]
[Round "11"]
[White "N_I_Chess"]
[Black "samidescalona2002"]
[Result "0-1"]
[WhiteElo "2374"]
[BlackElo "2695"]
[TimeControl "180+1"]
[EndTime "10:10:10 PDT"]
[Termination "samidescalona2002 won on time"]

1. d4 {[%clk 0:02:56.6]} 1... Nf6 {[%clk 0:02:56.2]} 2. c4 {[%clk 0:02:56.5]}
2... g6 {[%clk 0:02:57.1]} 3. Nc3 {[%clk 0:02:56.3]} 3... Bg7 {[%clk 0:02:58]}
4. e4 {[%clk 0:02:56.5]} 4... d6 {[%clk 0:02:58.9]} 5. f4 {[%clk 0:02:56.8]}
5... O-O {[%clk 0:02:59]} 6. Nf3 {[%clk 0:02:57.2]} 6... c5 {[%clk 0:02:59.5]}
7. d5 {[%clk 0:02:57.4]} 7... b5 {[%clk 0:02:57.6]} 8. cxb5 {[%clk 0:02:56.8]}
8... a6 {[%clk 0:02:57.7]} 9. bxa6 {[%clk 0:02:30]} 9... Qa5 {[%clk 0:02:56.9]}
10. Bd2 {[%clk 0:02:25.6]} 10... Nxa6 {[%clk 0:02:20.1]} 11. Bb5 {[%clk
0:02:04.7]} 11... Nc7 {[%clk 0:02:18]} 12. Bc4 {[%clk 0:01:00.3]} 12... Ba6
{[%clk 0:02:14.3]} 13. Bxa6 {[%clk 0:00:58.2]} 13... Qxa6 {[%clk 0:02:14.2]} 14.
Qe2 {[%clk 0:00:52.6]} 14... Rfb8 {[%clk 0:02:13.6]} 15. Qxa6 {[%clk 0:00:49]}
15... Nxa6 {[%clk 0:02:08.1]} 16. Rb1 {[%clk 0:00:46.5]} 16... Nb4 {[%clk
0:02:07]} 17. O-O {[%clk 0:00:18.3]} 17... Nxa2 {[%clk 0:02:04.4]} 18. Rfe1
{[%clk 0:00:17.6]} 18... Nb4 {[%clk 0:01:51.3]} 19. Re3 {[%clk 0:00:13]} 19...
Nd7 {[%clk 0:01:38.2]} 20. e5 {[%clk 0:00:11.9]} 20... Nb6 {[%clk 0:01:37.9]}
21. exd6 {[%clk 0:00:06]} 21... exd6 {[%clk 0:01:37.9]} 22. Nb5 {[%clk
0:00:04.9]} 22... N6xd5 {[%clk 0:01:37]} 23. Nxd6 {[%clk 0:00:02.5]} 23... Nxe3
{[%clk 0:01:36.3]} 24. Bxe3 {[%clk 0:00:03.4]} 24... Nd5 {[%clk 0:01:34.5]} 25.
Bxc5 {[%clk 0:00:03]} 25... Rxb2 {[%clk 0:01:31.5]} 26. Rxb2 {[%clk 0:00:03]}
26... Bxb2 {[%clk 0:01:32.2]} 27. f5 {[%clk 0:00:03.5]} 27... Ra5 {[%clk
0:01:27.6]} 28. Bf2 {[%clk 0:00:02.8]} 28... Ra1+ {[%clk 0:01:26.7]} 29. Ne1
{[%clk 0:00:01.7]} 29... Bc3 {[%clk 0:01:25.9]} 30. Kf1 {[%clk 0:00:01.7]} 30...
Bxe1 {[%clk 0:01:19.1]} 31. Bxe1 {[%clk 0:00:01.7]} 31... Ne3+ {[%clk 0:01:20]}
32. Ke2 {[%clk 0:00:01.7]} 32... Nxg2 {[%clk 0:01:19.9]} 0-1

[Event "Early-Titled-Tuesday-Blitz-April-23-2024"]
[Site "Chess.com"]
[Date "2024.04.23"]
[Round "11"]
[White "dvglko"]
[Black "H3nriqueTV"]
[Result "1/2-1/2"]
[WhiteElo "2433"]
[BlackElo "2323"]
[TimeControl "180+1"]
[EndTime "10:10:13 PDT"]
[Termination "Game drawn by repetition"]

1. e4 {[%clk 0:03:00.9]} 1... c5 {[%clk 0:02:54.8]} 2. Nf3 {[%clk 0:03:00.5]}
2... d6 {[%clk 0:02:54]} 3. Bb5+ {[%clk 0:03:01]} 3... Bd7 {[%clk 0:02:54.2]} 4.
Bxd7+ {[%clk 0:03:00.9]} 4... Qxd7 {[%clk 0:02:55.1]} 5. O-O {[%clk 0:03:00.6]}
5... g6 {[%clk 0:02:55.4]} 6. d4 {[%clk 0:02:44.5]} 6... cxd4 {[%clk 0:02:47.5]}
7. Nxd4 {[%clk 0:02:45.4]} 7... Bg7 {[%clk 0:02:47.4]} 8. Be3 {[%clk 0:02:43.5]}
8... Nf6 {[%clk 0:02:47.2]} 9. f3 {[%clk 0:02:43]} 9... O-O {[%clk 0:02:47.2]}
10. c4 {[%clk 0:02:43.5]} 10... Nc6 {[%clk 0:02:47.1]} 11. Nc3 {[%clk
0:02:43.3]} 11... Rac8 {[%clk 0:02:47.6]} 12. b3 {[%clk 0:02:21.9]} 12... a6
{[%clk 0:02:27.5]} 13. Rc1 {[%clk 0:02:20.6]} 13... e6 {[%clk 0:02:18.5]} 14.
Qd2 {[%clk 0:02:07.6]} 14... d5 {[%clk 0:02:05.1]} 15. Nxc6 {[%clk 0:01:40.2]}
15... bxc6 {[%clk 0:02:02.7]} 16. cxd5 {[%clk 0:01:38.3]} 16... cxd5 {[%clk
0:02:03.1]} 17. exd5 {[%clk 0:01:38.5]} 17... Nxd5 {[%clk 0:01:52.7]} 18. Nxd5
{[%clk 0:01:37.7]} 18... exd5 {[%clk 0:01:52.5]} 19. Rxc8 {[%clk 0:01:22.2]}
19... Rxc8 {[%clk 0:01:51.7]} 20. Rd1 {[%clk 0:01:22.6]} 20... Qe6 {[%clk
0:01:12.2]} 21. Bd4 {[%clk 0:01:13.8]} 21... Bxd4+ {[%clk 0:00:45.8]} 22. Qxd4
{[%clk 0:01:14.7]} 22... Rc2 {[%clk 0:00:46.2]} 23. Qxd5 {[%clk 0:00:59.1]}
23... Qe2 {[%clk 0:00:44.9]} 24. Qd8+ {[%clk 0:00:26.7]} 24... Kg7 {[%clk
0:00:43.5]} 25. Qd4+ {[%clk 0:00:26.8]} 25... Kg8 {[%clk 0:00:37.2]} 26. Qd8+
{[%clk 0:00:24.1]} 26... Kg7 {[%clk 0:00:37.4]} 27. Qd4+ {[%clk 0:00:23.5]}
27... Kg8 {[%clk 0:00:37.5]} 28. Qd8+ {[%clk 0:00:19.2]} 1/2-1/2

[Event "Early-Titled-Tuesday-Blitz-April-23-2024"]
[Site "Chess.com"]
[Date "2024.04.23"]
[Round "11"]
[White "Airquake"]
[Black "sokidze"]
[Result "0-1"]
[WhiteElo "2660"]
[BlackElo "2803"]
[TimeControl "180+1"]
[EndTime "10:10:20 PDT"]
[Termination "sokidze won on time"]

1. b3 {[%clk 0:02:58.4]} 1... d5 {[%clk 0:02:57.5]} 2. Bb2 {[%clk 0:02:59.3]}
2... c5 {[%clk 0:02:58.3]} 3. Nf3 {[%clk 0:02:59]} 3... f6 {[%clk 0:02:58.6]} 4.
g3 {[%clk 0:02:49.3]} 4... e5 {[%clk 0:02:58.6]} 5. d3 {[%clk 0:02:50.2]} 5...
Ne7 {[%clk 0:02:56.9]} 6. Bg2 {[%clk 0:02:50.7]} 6... Nec6 {[%clk 0:02:57.3]} 7.
O-O {[%clk 0:02:50.8]} 7... Be6 {[%clk 0:02:56.9]} 8. c4 {[%clk 0:02:43.1]} 8...
d4 {[%clk 0:02:55.5]} 9. e3 {[%clk 0:02:43.6]} 9... Nd7 {[%clk 0:02:53.2]} 10.
exd4 {[%clk 0:02:41.5]} 10... cxd4 {[%clk 0:02:53.6]} 11. Re1 {[%clk 0:02:40.5]}
11... Nc5 {[%clk 0:02:30.6]} 12. b4 {[%clk 0:02:05.4]} 12... Nxb4 {[%clk
0:02:21.5]} 13. Nxd4 {[%clk 0:02:05.7]} 13... exd4 {[%clk 0:01:59.9]} 14. Bh3
{[%clk 0:01:30.5]} 14... Kf7 {[%clk 0:01:53.9]} 15. Bxe6+ {[%clk 0:01:15.1]}
15... Nxe6 {[%clk 0:01:53.2]} 16. Na3 {[%clk 0:01:10.8]} 16... Qd7 {[%clk
0:01:47]} 17. Qb3 {[%clk 0:00:58.4]} 17... Na6 {[%clk 0:01:38]} 18. c5 {[%clk
0:00:28.8]} 18... Nxc5 {[%clk 0:01:27.5]} 19. Qc4 {[%clk 0:00:28.8]} 19... a6
{[%clk 0:01:23.1]} 20. Rab1 {[%clk 0:00:11.6]} 20... b5 {[%clk 0:01:22]} 21. Qc2
{[%clk 0:00:12.5]} 21... Bd6 {[%clk 0:01:19.3]} 22. Qe2 {[%clk 0:00:11.2]} 22...
Rae8 {[%clk 0:01:15]} 23. Nc2 {[%clk 0:00:11.7]} 23... Ng5 {[%clk 0:01:12.8]}
24. Qh5+ {[%clk 0:00:06.2]} 24... g6 {[%clk 0:01:12.1]} 25. Qh6 {[%clk
0:00:05.8]} 25... Nf3+ {[%clk 0:01:10.8]} 26. Kg2 {[%clk 0:00:05]} 26... Nxe1+
{[%clk 0:01:10.7]} 27. Nxe1 {[%clk 0:00:05.6]} 27... Bf8 {[%clk 0:01:06.5]} 28.
Qf4 {[%clk 0:00:04.1]} 28... Qd5+ {[%clk 0:01:04.9]} 29. Nf3 {[%clk 0:00:04.7]}
29... Nxd3 {[%clk 0:01:04.9]} 30. Qc7+ {[%clk 0:00:03.3]} 30... Re7 {[%clk
0:01:05]} 31. Qc8 {[%clk 0:00:02.7]} 31... Ne1+ {[%clk 0:01:02.8]} 32. Rxe1
{[%clk 0:00:02]} 32... Rxe1 {[%clk 0:01:03.5]} 0-1